bitfinex/quotes_ETHUSD_20220227
["timestamp","ask_amount","ask_price","bid_price","bid_amount"]
[1645937123857,1.08345392,2713.3,2713.0,0.83]
[1645937124857,1.08937147,2713.3,2713.0,0.83]
[1645937125256,0.00591755,2713.3,2713.0,0.83]
[1645937125861,0.0016544,2713.6,2713.0,0.83]
[1645937126062,0.00591755,2713.3,2713.0,0.83]
[1645937126904,0.3675,2713.6,2713.0,0.83]
[1645937127103,1.19739285,2713.4,2713.0,0.83]
[1645937127304,0.00591755,2713.3,2713.0,0.83]
[1645937128208,1.19739285,2713.4,2713.0,0.83]
[1645937128406,0.00591755,2713.3,2713.0,0.83]
[1645937129410,0.0016544,2713.7,2713.0,1.75138]
[1645937129608,1.2009,2713.8,2713.0,2.66528]
[1645937129609,0.00591755,2713.3,2713.0,2.66528]
[1645937129810,0.00591755,2713.3,2713.0,3.66528]
[1645937130249,0.00591755,2713.3,2713.1,1.2771207]
[1645937130456,0.00591755,2713.3,2713.2,0.53]
[1645937130652,0.0016544,2713.8,2713.2,0.53]
[1645937130853,8.61573522,2714.0,2713.2,0.83]
[1645937130854,0.00591753,2713.3,2713.2,0.83]
[1645937131858,0.0016544,2713.8,2713.2,0.83]
[1645937132054,8.61738962,2714.0,2713.7,1.0999003]
[1645937132254,8.61573522,2714.0,2713.7,1.9299003]
[1645937132857,7.36,2714.0,2713.7,1.9299003]
[1645937133255,7.36591718,2714.0,2713.7,1.9299003]
[1645937134304,7.36,2714.0,2713.7,0.83]
[1645937134507,7.36591718,2714.0,2713.7,0.83]
[1645937135406,1.4132412,2713.9,2713.7,0.83]
[1645937136510,7.36591718,2714.0,2713.7,0.83]
[1645937136709,1.25573522,2713.9,2713.7,0.83]
[1645937136908,1.26165242,2713.9,2713.7,0.83]
[1645937137607,2.61020294,2713.9,2713.7,0.83]
[1645937137853,1.25573522,2713.9,2713.7,0.83]
[1645937138754,1.25573522,2713.9,2713.8,1.26665896]
[1645937138960,1.25573522,2713.9,2713.8,1.79665896]
[1645937139154,7.36,2714.0,2713.8,1.79665896]
[1645937139558,7.35865497,2714.0,2713.9,0.92106]
[1645937139759,0.0016544,2714.3,2713.9,1.75106]
[1645937139956,7.36,2714.4,2713.9,1.75106]
[1645937140560,0.00591253,2714.2,2713.9,1.75106]
[1645937141517,7.36,2714.4,2713.9,1.75106]
[1645937141809,0.00591256,2714.2,2713.9,1.94092964]
[1645937142005,0.00591256,2714.2,2713.9,1.75106]
[1645937142607,7.36,2714.4,2713.9,1.96701021]
[1645937142808,0.00591256,2714.2,2714.0,11.22]
[1645937143008,0.00591256,2714.2,2714.1,11.75]
[1645937143206,0.00591256,2714.2,2714.1,12.25145419]
[1645937143407,0.00591256,2714.2,2714.1,1.83]
[1645937143808,7.36,2714.4,2714.1,0.83]
[1645937144008,0.0059125,2714.3,2714.2,1.02755298]
[1645937144207,0.0059125,2714.3,2714.2,1.55755298]
[1645937145012,7.36,2714.4,2714.2,1.55755298]
[1645937145270,7.36591245,2714.4,2714.2,1.55755298]
[1645937146279,7.36,2714.4,2714.2,1.55755298]
[1645937146478,0.00591242,2714.4,2714.2,1.55755298]
[1645937146679,0.00591242,2714.4,2714.2,12.77755298]
[1645937147077,0.00591242,2714.4,2714.2,2.55755298]
[1645937147278,0.00591242,2714.4,2714.2,1.55755298]
[1645937147978,0.00591242,2714.4,2714.2,0.53]
[1645937148579,0.0016544,2714.8,2714.2,0.53]
[1645937148778,0.00591242,2714.4,2714.2,0.53]
[1645937149406,0.00591242,2714.4,2714.1,0.6]
[1645937149603,0.00591242,2714.4,2714.1,0.3]
[1645937149803,0.3675,2714.5,2713.8,0.3]
[1645937150005,0.00756685,2714.4,2713.8,0.6]
[1645937150209,0.00591245,2714.4,2713.7,0.83]
[1645937151010,3.5016544,2714.7,2713.7,2.67199]
[1645937151211,3.5016544,2714.7,2713.7,3.67199]
[1645937151410,0.0057485,2714.2,2713.8,11.22]
[1645937151609,0.0057485,2714.2,2713.9,0.53]
[1645937152111,0.0057485,2714.2,2714.0,1.0472132]
[1645937152310,0.0016544,2714.7,2714.2,11.22]
[1645937152512,1.1839,2714.9,2714.3,0.53]
[1645937152513,0.0016544,2714.8,2714.3,0.53]
[1645937152758,1.1839,2714.9,2714.3,0.83]
[1645937153657,1.1839,2714.9,2714.6,1.42570075]
[1645937153954,0.00574823,2714.7,2714.6,1.42570075]
[1645937154555,0.0016544,2715.1,2714.6,1.42570075]
[1645937154754,0.0016544,2715.2,2714.6,1.42570075]
[1645937155054,10.8752,2715.3,2715.1,1.07763129]
[1645937155055,10.5077,2715.3,2715.1,1.07763129]
[1645937155267,7.36,2715.3,2715.1,1.37763129]
[1645937155960,7.36,2715.3,2715.2,0.53]
[1645937156158,7.36566554,2715.3,2715.2,0.53]
[1645937157004,7.36,2715.3,2715.2,0.53]
[1645937163758,7.35871439,2715.3,2715.2,0.53]
[1645937166302,10.85871439,2715.3,2715.2,0.53]
[1645937166502,3.5,2715.3,2715.2,0.53]
[1645937173311,3.5,2715.3,2715.1,0.6]
[1645937173713,3.8675,2715.2,2714.4,0.53]
[1645937173914,3.8691544,2715.2,2714.5,7.367]
[1645937174314,1.20195065,2714.8,2714.5,7.367]
[1645937174512,0.3691544,2715.2,2714.5,7.367]
[1645937175115,0.3691544,2715.2,2714.5,8.667]
[1645937175368,0.00444737,2715.0,2714.5,8.667]
[1645937176274,1.58407968,2715.2,2714.5,8.667]
[1645937176470,0.00566081,2714.9,2714.5,8.667]
[1645937177471,0.0016544,2715.2,2714.5,8.667]
[1645937177771,0.00566083,2714.8,2714.5,8.667]
[1645937178671,1.17328274,2715.0,2714.5,8.667]
[1645937178875,0.00566085,2714.8,2714.5,8.667]
[1645937179908,1.39132863,2715.1,2714.5,8.667]
[1645937180112,0.00572969,2714.8,2714.5,8.667]
[1645937180513,0.00572969,2714.8,2714.5,9.197]
[1645937181116,0.0016544,2715.2,2714.5,9.197]
[1645937181317,0.00572969,2714.8,2714.5,9.197]
[1645937182214,0.0016544,2715.2,2714.5,9.197]
[1645937182415,3.5,2715.3,2714.8,1.04935452]
[1645937182754,0.0016544,2715.2,2714.5,9.197]
[1645937182953,3.5,2715.3,2714.5,9.197]
[1645937183156,0.0016544,2715.2,2714.5,9.197]
[1645937183356,3.5,2715.3,2714.5,9.197]
[1645937183555,0.0016544,2715.2,2714.5,9.197]
[1645937183755,3.5,2715.3,2715.0,1.1141018]
[1645937183957,0.0016544,2715.2,2715.0,1.1141018]
[1645937184161,3.5,2715.3,2715.0,1.1141018]
[1645937184356,3.49873293,2715.3,2715.0,1.1141018]
[1645937184957,3.5044016,2715.3,2714.9,0.3]
[1645937185366,3.5044016,2715.3,2714.7,0.3]
[1645937185663,3.5044016,2715.3,2714.5,9.197]
[1645937185863,3.49873293,2715.3,2714.5,9.197]
[1645937186064,0.00444729,2715.1,2714.5,9.197]
[1645937186263,0.00444729,2715.1,2714.8,1.41188917]
[1645937186514,0.00444729,2715.1,2714.8,1.71188917]
[1645937186906,0.00444729,2715.1,2714.8,0.3]
[1645937187107,3.49873293,2715.3,2714.5,8.897]
[1645937187408,0.00567981,2715.1,2714.5,8.897]
[1645937187606,0.00567981,2715.1,2714.5,9.197]
[1645937187808,0.00567981,2715.1,2714.7,1.04524463]
[1645937188112,0.00567981,2715.1,2714.8,0.53]
[1645937188309,3.49873293,2715.3,2714.8,0.53]
[1645937188707,0.00567984,2715.0,2714.8,0.53]
[1645937189609,3.49873293,2715.3,2714.8,0.53]
[1645937189809,0.00567984,2715.0,2714.8,0.53]
[1645937190671,3.49873293,2715.3,2714.8,0.53]
[1645937190873,0.00567829,2715.0,2714.7,0.3]
[1645937191275,0.00567829,2715.0,2714.5,9.197]
[1645937191877,0.0016544,2715.2,2714.5,9.197]
[1645937192174,3.49873293,2715.3,2714.7,1.38126188]
[1645937192175,0.00567836,2714.9,2714.7,1.38126188]
[1645937192373,0.00567836,2714.9,2714.7,1.68126188]
[1645937193175,0.0016544,2715.2,2714.6,0.3]
[1645937193380,3.49873293,2715.3,2714.5,9.197]
[1645937193381,0.00567833,2714.9,2714.5,9.197]
[1645937194312,1.32597104,2715.2,2714.5,9.197]
[1645937194512,0.00567861,2714.8,2714.5,9.197]
[1645937195519,1.34868206,2715.2,2714.5,9.197]
[1645937195520,1.32597104,2715.2,2714.5,9.197]
[1645937195721,0.00567863,2714.8,2714.5,9.197]
[1645937196621,1.32597104,2715.2,2714.5,9.197]
[1645937197020,0.00567863,2714.8,2714.5,9.197]
[1645937197867,1.32597104,2715.2,2714.5,9.197]
[1645937198267,0.0056786,2714.8,2714.5,8.667]
[1645937199069,0.00108197,2714.8,2714.5,8.667]
[1645937199266,0.00676057,2714.8,2714.5,8.667]
[1645937200373,0.00108197,2714.8,2714.5,8.667]
[1645937200570,0.00676057,2714.8,2714.5,8.667]
[1645937201510,0.00108197,2714.8,2714.5,8.667]
[1645937201709,0.00676057,2714.8,2714.5,8.667]
[1645937202711,0.00108197,2714.8,2714.5,8.667]
[1645937202910,0.00676057,2714.8,2714.5,8.667]
[1645937203313,0.00676057,2714.8,2714.6,0.53]
[1645937203912,0.00108197,2714.8,2714.6,0.53]
[1645937204110,0.00676055,2714.8,2714.6,0.53]
[1645937204613,0.00590576,2714.8,2714.6,0.53]
[1645937204818,0.00590576,2714.8,2714.6,14.11030635]
[1645937205260,0.02436532,2715.2,2714.8,11.5875]
[1645937205261,0.0016544,2715.2,2714.8,11.5875]
[1645937205465,0.0016544,2715.2,2714.9,0.53]
[1645937205466,0.02271091,2715.2,2714.9,0.53]
[1645937205666,0.02271091,2715.2,2714.9,1.74977242]
[1645937206269,3.49873293,2715.3,2714.9,1.74977242]
[1645937206467,0.00567842,2715.2,2714.9,1.74977242]
[1645937206667,0.00567842,2715.2,2714.9,0.53]
[1645937206868,0.00567842,2715.2,2714.8,0.3]
[1645937207068,0.00567842,2715.2,2714.7,0.3]
[1645937207268,0.00567842,2715.2,2714.5,9.8737]
[1645937207470,0.0016544,2715.2,2714.5,9.8737]
[1645937207673,1.55606064,2715.2,2714.5,9.8737]
[1645937207869,0.00567847,2715.1,2714.5,9.8737]
[1645937208069,1.33768512,2715.0,2714.5,10.91218223]
[1645937208268,1.33768512,2715.0,2714.5,9.70548223]
[1645937208872,1.33768512,2715.0,2714.5,8.667]
[1645937209109,0.0016544,2715.2,2714.5,8.667]
[1645937209110,0.00567855,2714.9,2714.5,8.667]
[1645937209910,0.0016544,2715.2,2714.5,9.197]
[1645937210111,0.00567858,2714.8,2714.7,1.4244356]
[1645937210319,0.00567858,2714.8,2714.7,1.7244356]
[1645937211215,0.0016544,2715.2,2714.7,1.7244356]
[1645937211417,0.00567855,2714.9,2714.7,1.7244356]
[1645937212219,0.0016544,2715.2,2714.7,1.7244356]
[1645937212417,3.49873293,2715.3,2714.8,0.53]
[1645937212616,0.00567853,2714.9,2714.8,0.53]
[1645937213467,3.49873293,2715.3,2714.8,0.53]
[1645937213868,0.00567851,2715.0,2714.8,0.53]
[1645937214667,3.49873293,2715.3,2714.8,0.53]
[1645937216522,3.49873293,2715.3,2714.8,1.90295639]
[1645937217409,0.00567391,2715.2,2714.8,1.90295639]
[1645937218211,3.49873293,2715.3,2714.8,1.90295639]
[1645937218612,0.00567394,2715.1,2714.8,2.82365639]
[1645937218910,0.00567394,2715.1,2714.8,3.82365639]
[1645937219510,3.49873293,2715.3,2714.8,3.82365639]
[1645937219711,0.00572653,2715.1,2714.8,3.82365639]
[1645937220111,0.00572653,2715.1,2714.8,2.90295639]
[1645937220370,0.00572653,2715.1,2714.8,1.90295639]
[1645937220576,0.00572653,2715.1,2714.8,2.90295639]
[1645937220770,3.49873293,2715.3,2714.8,1.90295639]
[1645937220971,0.00572653,2715.1,2714.8,2.90295639]
[1645937221372,0.00572653,2715.1,2714.8,1.90295639]
[1645937221974,3.49873293,2715.3,2714.8,1.90295639]
[1645937222174,0.00572653,2715.1,2714.8,1.90295639]
[1645937223184,3.49873293,2715.3,2714.8,1.90295639]
[1645937223384,0.00566612,2715.1,2714.8,1.90295639]
[1645937223780,0.00566612,2715.1,2714.9,1.22066]
[1645937224026,0.00566612,2715.1,2715.0,0.53]
[1645937224416,3.49873293,2715.3,2715.0,0.53]
[1645937224619,0.0056661,2715.1,2715.0,0.53]
[1645937225622,3.49873293,2715.3,2715.0,0.53]
[1645937225827,0.00566607,2715.2,2715.0,0.53]
[1645937226927,0.00567489,2715.2,2715.0,0.53]
[1645937227772,0.00567489,2715.2,2715.0,11.91547159]
[1645937227977,3.49873293,2715.3,2715.0,11.91547159]
[1645937228176,0.00567489,2715.2,2715.0,13.21547159]
[1645937228380,0.00567489,2715.2,2715.1,18.75469977]
[1645937228574,0.00567489,2715.2,2715.1,19.58469977]
[1645937228776,0.00567489,2715.2,2715.1,9.1962]
[1645937229176,3.49873293,2715.3,2715.1,9.1962]
[1645937229377,3.5035224,2715.3,2715.1,20.4162]
[1645937230178,3.5035224,2715.3,2715.1,9.1962]
[1645937230379,3.49784754,2715.3,2715.1,9.1962]
[1645937230682,3.50352109,2715.3,2715.1,9.1962]
[1645937231380,3.50352109,2715.3,2715.1,7.3662]
[1645937231631,3.49784754,2715.3,2715.1,7.3662]
[1645937231828,3.50352109,2715.3,2715.1,7.3662]
[1645937232731,3.49784754,2715.3,2715.1,7.3662]
[1645937232930,3.50352109,2715.3,2715.1,7.3662]
[1645937233132,3.50352109,2715.3,2715.1,8.6662]
[1645937234032,3.49784754,2715.3,2715.1,8.6662]
[1645937234231,3.50352128,2715.3,2715.1,8.6662]
[1645937235031,3.49784754,2715.3,2715.1,8.6662]
[1645937235465,3.50352128,2715.3,2715.1,8.6662]
[1645937236270,3.49784754,2715.3,2715.1,8.6662]
[1645937236567,3.49784754,2715.3,2715.1,9.1962]
[1645937236568,3.50349876,2715.3,2715.1,9.1962]
[1645937237570,3.49784754,2715.3,2715.1,10.41936111]
[1645937237770,3.50349873,2715.3,2715.1,10.41936111]
[1645937238172,3.50349873,2715.3,2715.1,9.1962]
[1645937238877,3.49784754,2715.3,2715.1,9.1962]
[1645937239118,3.50349873,2715.3,2715.1,9.1962]
[1645937239318,3.50349873,2715.3,2715.1,8.6662]
[1645937239922,3.49784754,2715.3,2715.1,8.6662]
[1645937240125,3.50352125,2715.3,2715.1,8.6662]
[1645937240721,4.52374328,2715.3,2715.1,8.6662]
[1645937241122,4.51806957,2715.3,2715.1,8.6662]
[1645937241323,3.45352126,2715.3,2715.1,8.6662]
[1645937242326,3.44784754,2715.3,2715.1,8.6662]
[1645937242522,3.45352126,2715.3,2715.1,8.6662]
[1645937243370,4.75337041,2715.3,2715.1,8.6662]
[1645937243571,4.74769669,2715.3,2715.1,8.6662]
[1645937243772,4.75337041,2715.3,2715.1,8.6662]
[1645937244772,4.74769669,2715.3,2715.1,8.6662]
[1645937244973,4.70337041,2715.3,2715.1,8.6662]
[1645937245874,4.69769669,2715.3,2715.1,8.6662]
[1645937246074,4.70337041,2715.3,2715.1,8.3662]
[1645937246278,1.55606015,2715.2,2715.1,7.3662]
[1645937247128,1.70326015,2715.2,2715.1,7.3662]
[1645937248625,1.55606015,2715.2,2715.1,7.36518615]
[1645937260774,1.45606015,2715.2,2715.1,7.36518615]
[1645937264024,1.45606015,2715.2,2715.1,5.70520777]
[1645937267078,19.0875,2715.1,2714.2,0.25]
[1645937267280,24.0875,2715.1,2713.8,1.2065]
[1645937267482,12.7317,2715.0,2713.8,1.2065]
[1645937267879,0.0044407,2714.8,2713.8,0.7452]
[1645937268081,1.02389387,2714.0,2713.8,0.7452]
[1645937268285,1.02497584,2714.0,2713.3,0.25]
[1645937268483,1.02497584,2714.0,2713.2,4.688768]
[1645937268484,1.02497584,2714.0,2713.2,0.147368]
[1645937268882,12.24497584,2714.0,2713.2,0.147368]
[1645937269129,0.0041432,2713.8,2712.9,1.0]
[1645937269329,1.1379196,2713.4,2713.0,0.00096]
[1645937269530,1.1379196,2713.4,2712.6,1.80859371]
[1645937269531,1.1379196,2713.4,2712.8,0.00096]
[1645937269731,1.1379196,2713.4,2712.6,0.6175]
[1645937269932,0.00108197,2713.8,2712.6,0.3675]
[1645937270236,0.00560845,2713.2,2712.7,0.00096]
[1645937270431,0.00560845,2713.2,2712.6,0.3675]
[1645937270633,0.00560845,2713.2,2712.6,0.6675]
[1645937270829,0.00560845,2713.2,2712.6,0.2062]
[1645937271230,0.00108197,2713.8,2712.6,0.2062]
[1645937271429,0.00108197,2713.8,2712.8,1.40242539]
[1645937271430,0.00560855,2713.0,2712.8,1.40242539]
[1645937271631,0.00560855,2713.0,2712.9,0.00096]
[1645937271832,0.00560855,2713.0,2712.6,0.2062]
[1645937272430,0.00108197,2713.8,2712.6,0.2062]
[1645937272631,1.08891256,2713.7,2712.9,1.39488021]
[1645937272873,1.08999453,2713.7,2713.0,0.00096]
[1645937273068,1.08999453,2713.7,2712.9,0.3]
[1645937273069,1.08999453,2713.7,2712.8,0.3]
[1645937273372,1.08999453,2713.7,2712.9,0.00096]
[1645937273568,1.08999453,2713.7,2712.7,0.00096]
[1645937273767,0.0055269,2713.4,2712.7,0.00096]
[1645937273967,0.0055269,2713.4,2712.7,0.86867454]
[1645937274167,0.0055269,2713.4,2712.7,1.16963454]
[1645937274770,1.08999453,2713.7,2712.7,1.16963454]
[1645937274969,0.00536583,2713.2,2712.8,0.00096]
[1645937275169,0.00536583,2713.2,2712.7,1.16867454]
[1645937275975,4.58999453,2713.7,2712.7,0.5062]
[1645937276176,0.00536587,2713.1,2712.8,0.00096]
[1645937276375,0.00536587,2713.1,2712.7,0.5062]
[1645937276626,0.00536587,2713.1,2712.7,0.3]
[1645937276829,0.00536587,2713.1,2712.4,6.24516]
[1645937277031,0.00536587,2713.1,2712.5,1.13405861]
[1645937277230,4.58999453,2713.7,2712.5,1.13405861]
[1645937277432,0.00407257,2713.0,2712.5,1.13405861]
[1645937277634,0.00407257,2713.0,2712.6,0.3675]
[1645937278332,1.08999453,2713.7,2712.6,0.6675]
[1645937278533,0.00529428,2712.9,2712.6,0.6675]
[1645937279535,1.08999453,2713.7,2712.6,0.6675]
[1645937279737,0.0052943,2712.9,2712.6,0.6675]
[1645937280687,1.08999453,2713.7,2712.6,0.6675]
[1645937280892,0.00407455,2712.9,2712.7,0.00096]
[1645937281091,0.00407455,2712.9,2712.6,0.6675]
[1645937281297,0.00407455,2712.9,2712.6,1.6675]
[1645937281491,0.00407455,2712.9,2712.6,0.6675]
[1645937281992,1.08999453,2713.7,2712.6,0.6675]
[1645937282190,0.00530612,2712.9,2712.7,0.00096]
[1645937282395,0.00530612,2712.9,2712.6,0.6675]
[1645937283291,0.00407455,2712.9,2712.6,0.6675]
[1645937284324,1.08999453,2713.7,2712.5,0.6675]
[1645937284524,0.00412662,2712.9,2712.6,0.36846]
[1645937284725,0.00412662,2712.9,2712.7,0.00096]
[1645937284928,0.00412662,2712.9,2712.6,0.3675]
[1645937285535,0.00412662,2712.9,2712.5,0.3]
[1645937285536,1.25208249,2713.1,2712.5,0.6675]
[1645937285735,1.25208249,2713.1,2712.0,12.59810374]
[1645937285736,0.00558688,2712.9,2712.6,0.00096]
[1645937285940,0.98988688,2712.9,2712.4,0.00096]
[1645937286140,0.98988688,2712.9,2712.0,0.00096]
[1645937286333,0.1474,2712.8,2712.0,0.00096]
[1645937286533,5.1474,2712.8,2712.0,0.00096]
[1645937286733,0.1474,2712.8,2712.0,0.00096]
[1645937286935,5.5149,2712.8,2712.0,0.00096]
[1645937287136,0.00558707,2712.5,2712.0,0.00096]
[1645937287333,1.376377,2712.2,2711.8,0.00096]
[1645937287534,1.376377,2712.2,2711.6,0.14843]
[1645937287783,1.376377,2712.2,2711.4,0.00096]
[1645937288176,1.38195284,2712.2,2711.4,0.00096]
[1645937288878,7.5,2712.1,2711.3,0.33996]
[1645937289282,7.5,2712.1,2711.3,6e-05]
[1645937289479,7.5,2712.1,2711.2,0.25]
[1645937289480,11.7349,2712.0,2711.2,0.25]
[1645937289777,0.3675,2711.5,2710.4,1.0]
[1645937289977,0.1474,2711.4,2710.4,1.0]
[1645937290374,0.1474,2711.4,2710.3,0.25]
[1645937290575,0.3675,2711.3,2710.1,1.0]
[1645937290779,0.3675,2711.3,2710.1,0.3]
[1645937291178,0.3675,2711.3,2710.0,0.3]
[1645937291377,1.06013261,2710.8,2709.9,8.37632213]
[1645937291642,3.5218,2711.2,2709.9,2.10842213]
[1645937291842,3.5218,2711.2,2709.7,4.039]
[1645937292044,3.8675,2711.1,2709.7,1.0]
[1645937292242,3.8675,2711.1,2709.6,4.5759]
[1645937292641,3.8675,2711.1,2709.7,0.00096]
[1645937292841,3.8675,2711.1,2709.7,0.36846]
[1645937293049,1.01374382,2710.7,2709.9,1.39412636]
[1645937293249,1.01374382,2710.7,2710.0,0.00096]
[1645937293454,1.01374382,2710.7,2709.9,1.69412636]
[1645937293950,5.7707,2711.1,2709.9,1.69412636]
[1645937294151,5.7707,2711.1,2710.2,0.00483794]
[1645937294555,0.28414637,2711.2,2710.2,0.00483794]
[1645937294753,1.1511,2711.6,2710.3,0.3675]
[1645937294754,2.1026,2711.5,2710.3,0.3675]
[1645937294956,2.1026,2711.5,2710.6,1.40306507]
[1645937294957,1.04839748,2711.4,2710.6,1.40306507]
[1645937295151,1.04839748,2711.4,2710.5,0.53]
[1645937296593,1.04839748,2711.4,2710.6,1.16041676]
[1645937296992,1.04839748,2711.4,2710.6,1.46041676]
[1645937297592,1.04839748,2711.4,2710.6,0.3]
[1645937297791,1.04839748,2711.4,2710.5,0.83]
[1645937297991,1.04839748,2711.4,2710.5,0.369]
[1645937298192,4.54839748,2711.4,2710.5,0.369]
[1645937298595,4.54839748,2711.4,2710.5,0.36996]
[1645937299031,0.00589554,2711.1,2710.5,0.36996]
[1645937299231,0.00589554,2711.1,2710.5,0.66996]
[1645937300034,4.54839748,2711.4,2710.5,0.66996]
[1645937300231,4.54839748,2711.4,2710.5,1.70911822]
[1645937300232,0.00589562,2710.9,2710.5,1.70911822]
[1645937300438,0.00589562,2710.9,2710.5,1.70815822]
[1645937301243,4.54839748,2711.4,2710.5,1.70815822]
[1645937301438,0.00589568,2710.8,2710.5,1.70911822]
[1645937301638,0.00589568,2710.8,2710.5,1.70815822]
[1645937302339,3.5,2711.4,2710.5,1.70815822]
[1645937302541,3.5,2711.4,2710.5,1.70911822]
[1645937302788,0.0058957,2710.8,2710.5,1.70911822]
[1645937302984,0.0058957,2710.8,2710.5,0.669]
[1645937303589,1.05483026,2711.3,2710.5,0.669]
[1645937303795,0.0058957,2710.8,2710.5,0.66996]
[1645937303990,0.0058957,2710.8,2710.5,0.669]
[1645937304788,1.05483026,2711.3,2710.5,0.669]
[1645937304989,0.0058957,2710.8,2710.5,0.66996]
[1645937305189,0.0058957,2710.8,2710.5,0.669]
[1645937305994,1.05483026,2711.3,2710.5,0.669]
[1645937306193,0.0058957,2710.8,2710.5,0.66996]
[1645937306396,0.0058957,2710.8,2710.5,0.669]
[1645937307240,1.05483026,2711.3,2710.5,0.669]
[1645937307440,0.0058957,2710.8,2710.5,0.66996]
[1645937307742,0.0058957,2710.8,2710.5,0.669]
[1645937308340,1.2985,2711.6,2710.5,0.669]
[1645937308540,1.2985,2711.6,2710.6,0.00096]
[1645937308742,0.0058957,2710.8,2710.6,0.00096]
[1645937308945,0.0058957,2710.8,2710.5,0.669]
[1645937309344,3.5058957,2710.8,2710.5,0.669]
[1645937309743,3.5,2710.8,2710.5,0.669]
[1645937309944,3.5058957,2710.8,2710.5,0.669]
[1645937310799,3.5,2710.8,2710.5,0.669]
[1645937311096,3.5058957,2710.8,2710.5,0.669]
[1645937311898,3.5,2710.8,2710.5,0.669]
[1645937312396,3.5058957,2710.8,2710.5,0.669]
[1645937312997,0.1474,2712.0,2710.7,15.5875]
[1645937313201,0.13674637,2712.1,2710.9,0.3675]
[1645937313202,0.00108197,2712.1,2710.9,0.3675]
[1645937313499,0.00108197,2712.1,2711.0,4.39846]
[1645937313900,0.00108197,2712.1,2711.6,1.15107561]
[1645937314148,0.00108197,2712.1,2711.7,3.5]
[1645937314337,0.00108197,2712.1,2711.7,0.53]
[1645937314538,0.00108197,2712.1,2711.7,1.53]
[1645937314740,0.0057323,2712.0,2711.7,0.53]
[1645937315543,0.00108197,2712.1,2711.7,0.53]
[1645937315743,0.0057323,2712.0,2711.7,0.53]
[1645937316749,0.00108197,2712.1,2711.7,0.53]
[1645937316943,0.00108197,2712.1,2711.6,1.60107561]
[1645937317144,0.0057323,2712.0,2711.6,1.30107561]
[1645937317791,0.0057323,2712.0,2711.6,0.15]
[1645937317977,0.00108197,2712.1,2711.4,1.53096]
[1645937318176,0.00575014,2711.9,2711.4,0.83096]
[1645937318979,0.00575014,2711.9,2711.6,1.5526576]
[1645937319179,0.00108197,2712.1,2711.7,0.53]
[1645937319387,0.00108197,2712.1,2711.7,0.6774]
[1645937319578,0.00575021,2711.8,2711.7,0.6774]
[1645937320481,0.00108197,2712.1,2711.7,0.6774]
[1645937320684,0.00575016,2711.9,2711.7,0.6774]
[1645937321524,0.00108197,2712.1,2711.7,0.6774]
[1645937321929,0.00565874,2711.9,2711.7,0.6774]
[1645937322324,0.00565874,2711.9,2711.7,0.53]
[1645937322728,3.50108197,2712.1,2711.7,0.53]
[1645937323229,0.00565874,2711.9,2711.6,0.7474]
[1645937323431,0.00565874,2711.9,2711.6,0.6]
[1645937323628,1.38806721,2711.8,2711.4,0.83096]
[1645937323930,1.38806721,2711.8,2711.4,0.83]
[1645937324331,0.00565883,2711.7,2711.4,0.83]
[1645937324531,0.00565883,2711.7,2711.5,7.3759]
[1645937324729,0.00565883,2711.7,2711.5,8.6759]
[1645937325131,1.38806721,2711.8,2711.5,8.6759]
[1645937325414,0.00567224,2711.7,2711.5,8.6759]
[1645937326412,3.50108197,2712.1,2711.5,8.6759]
[1645937326613,0.00567224,2711.7,2711.5,8.6759]
[1645937327016,0.00567224,2711.7,2711.5,8.3759]
[1645937327715,1.11679503,2711.9,2711.5,8.3759]
[1645937327914,0.00567224,2711.7,2711.5,8.3759]
[1645937328917,3.50108197,2712.1,2711.5,8.3759]
[1645937329142,0.00567017,2711.7,2711.5,8.3759]
[1645937329344,0.00567017,2711.7,2711.5,8.6759]
[1645937329545,0.00567017,2711.7,2711.5,9.2059]
[1645937329944,3.50108197,2712.1,2711.5,9.2059]
[1645937330246,0.00567017,2711.7,2711.5,9.2059]
[1645937330450,0.00567017,2711.7,2711.6,1.34107887]
[1645937330649,0.00567017,2711.7,2711.6,1.87107887]
[1645937331150,3.50108197,2712.1,2711.5,8.9759]
[1645937331349,3.50108197,2712.1,2711.5,9.2059]
[1645937331550,0.00567014,2711.8,2711.5,9.2059]
[1645937331752,0.00675211,2711.8,2711.5,9.2059]
[1645937331951,1.28730176,2711.8,2711.5,9.2059]
[1645937332149,0.00675211,2711.8,2711.5,9.2059]
[1645937332353,0.00108197,2711.8,2711.5,9.2059]
[1645937332548,0.00108197,2711.8,2711.5,8.6759]
[1645937332792,0.00675245,2711.8,2711.5,8.6759]
[1645937333587,0.00108197,2711.8,2711.5,8.6759]
[1645937333787,0.00675245,2711.8,2711.5,8.6759]
[1645937333988,0.00675245,2711.8,2711.5,7.3759]
[1645937334789,0.00108197,2711.8,2711.5,7.3759]
[1645937335191,0.00675245,2711.8,2711.5,7.3759]
[1645937336093,0.00108197,2711.8,2711.5,7.3759]
[1645937336294,1.04844324,2711.7,2711.5,7.3759]
[1645937337543,1.05411369,2711.7,2711.5,7.3759]
[1645937338140,1.05312521,2711.7,2711.5,7.3759]
[1645937338341,1.04745476,2711.7,2711.5,7.3759]
[1645937338640,1.05312521,2711.7,2711.5,7.3759]
[1645937339042,0.00567045,2711.7,2711.5,7.3759]
[1645937339646,0.00108197,2711.8,2711.5,7.3759]
[1645937339846,0.00567045,2711.7,2711.5,7.3759]
[1645937340886,0.00108197,2711.8,2711.5,7.3759]
[1645937341088,0.00567045,2711.7,2711.5,7.3759]
[1645937341988,0.00108197,2711.8,2711.5,7.3759]
[1645937342187,0.00567045,2711.7,2711.5,7.3759]
[1645937343190,0.00108197,2711.8,2711.5,7.3759]
[1645937343596,0.00567045,2711.7,2711.5,7.3759]
[1645937343795,0.3675,2711.6,2711.5,7.3759]
[1645937344032,4.0149,2711.6,2711.5,7.1723]
[1645937344232,0.5149,2711.6,2711.5,7.1723]
[1645937344435,1.85269779,2711.6,2711.5,7.1723]
[1645937345138,1.70529779,2711.6,2711.5,7.1723]